fUST/lending_fUST_20251030
["ID","MTS","AMOUNT","RATE_DAILY","PERIOD"]
[392665209,1761797442461,-504.04171797,0.0002943,2]
[392665210,1761797442471,-728.0,0.00029449,2]
[392665211,1761797442482,-2500.0,0.00029564,5]
[392665212,1761797442493,-609.80570444,0.00029589,4]
[392665213,1761797442503,-500.0,0.00029589,4]
[392665214,1761797442514,-168.0,0.00029626,2]
[392665215,1761797442525,-168.0,0.00029661,7]
[392665216,1761797442535,-951.09,0.000297,5]
[392665217,1761797442546,-168.0,0.0002978,2]
[392665218,1761797442557,-500.0,0.00029863,4]
[392665219,1761797442567,-800.0,0.00029877,2]
[392665220,1761797442576,-800.0,0.00029884,2]
[392665221,1761797442586,-800.0,0.00029889,2]
[392665222,1761797442596,-8679.81921365,0.0002989,2]
[392665223,1761797442606,-800.0,0.00029896,2]
[392665224,1761797442617,-800.0,0.00029903,2]
[392665225,1761797442627,-800.0,0.00029919,2]
[392665226,1761797442639,-800.0,0.00029963,2]
[392665227,1761797442651,-501.95899053,0.00029973,5]
[392665228,1761797442665,-500.0,0.00029973,5]
[392665229,1761797442675,-542.23311218,0.0002998,2]
[392665230,1761797442686,-161.047185,0.00029988,10]
[392665231,1761797442697,-24664.86015153,0.0002999,2]
[392665232,1761797442762,-500.0,0.0002999,2]
[392665234,1761797446013,-394.32021454,0.00025671,2]
[392665235,1761797446023,-500.0,0.00025671,2]
[392665236,1761797446033,-500.0,0.00025671,2]
[392665237,1761797446043,-613.68465202,0.00025671,2]
[392665238,1761797446053,-999.0,0.00027237,2]
[392665239,1761797446063,-500.0,0.00027397,2]
[392665240,1761797446073,-186.91,0.0002998,10]
[392665241,1761797446084,-428.53432927,0.0002999,2]
[392665242,1761797446126,5000.0,0.00024862,2]
[392665243,1761797455119,0.01,0.00024862,2]
[392665244,1761797455142,887.77908151,0.00024862,2]
[392665245,1761797463119,5000.0,0.00024862,2]
[392665246,1761797463213,500.0,0.00024861,2]
[392665247,1761797463261,500.0,0.00024861,2]
[392665248,1761797463324,500.0,0.00024861,2]
[392665249,1761797463382,194.23539367,0.00024861,2]
[392665250,1761797486477,5000.0,0.00024703,2]
[392665251,1761797508752,5000.0,0.00024703,2]
[392665252,1761797530939,0.01,0.00024703,2]
[392665253,1761797530961,4999.99,0.00024703,2]
[392665254,1761797540571,300.0,0.000247,2]
[392665255,1761797553662,5000.0,0.0002449,2]
[392665256,1761797575740,5000.0,0.0002449,2]
[392665257,1761797591523,0.01,0.0002449,2]
[392665258,1761797591546,862.10677717,0.0002449,2]
[392665259,1761797599468,5000.0,0.0002449,2]
[392665261,1761797614465,945.61532711,0.0002449,2]
[392665262,1761797623110,3192.28789572,0.0002449,2]
[392665263,1761797623132,1807.71210428,0.0002449,2]
[392665264,1761797645307,5000.0,0.0002449,2]
[392665265,1761797654143,3192.29789572,0.0002449,2]
[392665266,1761797654164,1807.70210428,0.0002449,2]
[392665267,1761797677916,5000.0,0.0002449,2]
[392665268,1761797700559,3192.30789572,0.0002449,2]
[392665269,1761797700581,1807.69210428,0.0002449,2]
[392665270,1761797722936,1278.23984219,0.0002449,2]
[392665271,1761797869506,5000.0,0.0002449,2]
[392665272,1761797878755,2126.23685561,0.0002449,2]
[392665273,1761797887353,1457.16024938,0.0002449,2]
[392665274,1761797895365,1416.61289501,0.0002449,2]
[392665275,1761797895388,3583.38710499,0.0002449,2]
[392665276,1761797903738,331.44069454,0.0002449,2]
[392665277,1761797919578,5000.0,0.0002449,2]
[392665278,1761797942604,1085.18220047,0.0002449,2]
[392665279,1761797942628,3914.81779953,0.0002449,2]
[392665280,1761797965739,5000.0,0.0002449,2]
[392665281,1761797971431,151.62394293,0.00024441,2]
[392665282,1761797988769,933.56825754,0.0002449,2]
[392665283,1761797988792,2895.47662846,0.0002449,2]
[392665284,1761798255646,-300.0,0.00024499,2]
[392665285,1761798255681,-1200.0,0.00024499,2]
[392665286,1761798255712,-300.0,0.00024499,2]
[392665287,1761798255745,-401.54779401,0.00024499,2]
[392665288,1761798255792,-300.0,0.000245,2]
[392665289,1761798255829,-300.0,0.000245,2]
[392665290,1761798255867,-300.0,0.000245,2]
[392665291,1761798255903,-300.0,0.000245,2]
[392665292,1761798255935,-300.0,0.000245,2]
[392665293,1761798255966,-300.0,0.000245,2]
[392665294,1761798255994,-300.0,0.000245,2]
[392665295,1761798256022,-222.63,0.000245,2]
[392665296,1761798256051,-222.63,0.00024774,2]
[392665297,1761798256084,-6.39441198,0.00024932,2]
[392665298,1761798256297,-493.60558802,0.00024932,2]
[392665299,1761798256327,-500.0,0.00024932,2]
[392665300,1761798256361,-500.0,0.00024932,2]
[392665301,1761798256395,-161.77926133,0.00024932,2]
[392665302,1761798256428,-504.07214013,0.00024933,2]
[392665303,1761798256457,-181.39748282,0.00024933,2]
[392665304,1761798256486,-500.0,0.00024933,2]
[392665305,1761798256515,-502.38159508,0.00024933,2]
[392665306,1761798267616,-500.0,0.00024932,2]
[392665307,1761798267647,-195.07459778,0.00024932,2]
[392665308,1761798267673,-500.0,0.00024932,2]
[392665309,1761798267701,-500.0,0.00024932,2]
[392665310,1761798267730,-500.0,0.00024932,2]
[392665311,1761798267757,-176.14907551,0.00024932,2]
[392665312,1761798267786,-500.0,0.00024932,2]
[392665313,1761798270633,-500.0,0.00024932,2]
[392665314,1761798276895,-2218.3415343,0.00024933,2]
[392665315,1761798276920,-10000.01,0.00024933,2]
[392665316,1761798279672,-10000.01,0.00024933,2]
[392665317,1761798288688,-475.02050724,0.00024932,2]
[392665318,1761798288719,-500.0,0.00024932,2]
[392665319,1761798288748,-357.56265342,0.00024932,2]
[392665320,1761798288807,-7334.84367868,0.00024933,2]
[392665321,1761798294778,-10000.01,0.00024933,2]
[392665322,1761798328249,-300.0,0.00024931,2]
[392665323,1761798328278,-300.0,0.00024931,2]
[392665324,1761798328307,-300.0,0.00024931,2]
[392665325,1761798328335,-300.0,0.00024931,2]
[392665326,1761798328363,-1192.0,0.00024931,2]
[392665327,1761798328455,-5216.01,0.00024932,2]
[392665328,1761798334300,-10000.01,0.00024932,2]
[392665332,1761798400241,-205.8312446,0.00024831,2]
[392665333,1761798400271,-300.0,0.00024931,2]
[392665334,1761798400301,-279.28155032,0.00024931,2]
[392665335,1761798400329,-500.0,0.00024931,2]
[392665336,1761798400358,-500.0,0.00024931,2]
[392665337,1761798400390,-500.0,0.00024931,2]
[392665338,1761798400419,-500.0,0.00024931,2]
[392665339,1761798400450,-500.0,0.00024931,2]
[392665340,1761798400481,-500.0,0.00024931,2]
[392665341,1761798400511,-500.0,0.00024931,2]
[392665342,1761798400540,-500.0,0.00024931,2]
[392665343,1761798400737,-500.0,0.00024931,2]
[392665344,1761798400887,-500.0,0.00024931,2]
[392665345,1761798400926,-500.0,0.00024931,2]
[392665346,1761798400959,-453.53962818,0.00024931,2]
[392665347,1761798400989,-500.0,0.00024931,2]
[392665348,1761798401020,-500.0,0.00024931,2]
[392665349,1761798401051,-500.0,0.00024931,2]
[392665350,1761798401083,-500.0,0.00024931,2]
[392665351,1761798401113,-500.0,0.00024931,2]
[392665352,1761798401142,-319.10946967,0.00024931,2]
[392665353,1761798401236,-500.0,0.00024931,2]
[392665354,1761798401270,-500.0,0.00024931,2]
[392665355,1761798401301,-500.0,0.00024931,2]
[392665356,1761798401330,-500.0,0.00024931,2]
[392665357,1761798401361,-500.0,0.00024931,2]
[392665358,1761798401394,-500.0,0.00024931,2]
[392665359,1761798401425,-470.92217479,0.00024931,2]
[392665360,1761798401456,-327.74191853,0.00024931,2]
[392665361,1761798401488,-500.0,0.00024931,2]
[392665362,1761798401518,-500.0,0.00024931,2]
[392665363,1761798401559,-500.0,0.00024931,2]
[392665364,1761798401591,-500.0,0.00024931,2]
[392665365,1761798401622,-500.0,0.00024931,2]
[392665366,1761798401652,-500.0,0.00024931,2]
[392665367,1761798401683,-500.0,0.00024931,2]
[392665368,1761798401718,-500.0,0.00024931,2]
[392665369,1761798401751,-427.1424305,0.00024931,2]
[392665370,1761798401783,-500.0,0.00024931,2]
[392665371,1761798401813,-500.0,0.00024931,2]
[392665372,1761798401847,-500.0,0.00024931,2]
[392665373,1761798401977,-500.0,0.00024931,2]
[392665374,1761798402008,-500.0,0.00024931,2]
[392665375,1761798402039,-500.0,0.00024931,2]
[392665376,1761798402069,-160.83448189,0.00024931,2]
[392665377,1761798402102,-500.0,0.00024931,2]
[392665378,1761798402134,-500.0,0.00024931,2]
[392665379,1761798402162,-500.0,0.00024931,2]
[392665380,1761798402836,-53.72955955,0.00024932,2]
[392665381,1761798402851,-500.0,0.00024932,2]
[392665382,1761798402865,-500.0,0.00024932,2]
[392665383,1761798402884,-500.0,0.00024932,2]
[392665384,1761798402898,-3678.34103622,0.00024932,2]
[392665385,1761798403206,-10000.01,0.00024932,2]
[392665386,1761798403389,-4623.72827383,0.00024932,2]
[392665387,1761798403417,-222.63648616,0.00025048,2]
[392665388,1761798403465,-307.28048002,0.00025716,2]
[392665389,1761798403556,-2499.05962678,0.00025716,2]
[392665390,1761798403585,-500.0,0.000263,2]
[392665391,1761798403615,-677.56942974,0.000263,2]
[392665392,1761798403644,-473.82639693,0.00026499,2]
[392665393,1761798403673,-500.0,0.00026574,2]
[392665394,1761798403704,-169.82355301,0.00026658,5]
[392665395,1761798403823,-359.45198708,0.00026856,2]
[392665396,1761798409092,-1683.68863777,0.00026856,2]
[392665397,1761798409122,-420.0,0.00027011,2]
[392665398,1761798409152,-2043.14062485,0.00027209,2]
[392665399,1761798409223,-1706.35147476,0.00027297,2]
[392665400,1761798409254,-2298.63125389,0.00027297,2]
[392665401,1761798409283,-300.0,0.000273,2]
[392665402,1761798409312,-300.0,0.000273,2]
[392665403,1761798409340,-500.0,0.00027373,2]
[392665404,1761798409369,-504.28255434,0.00027373,2]
[392665405,1761798409401,-151.0,0.00027381,2]
[392665406,1761798409432,-151.0,0.00027381,2]
[392665407,1761798409468,-151.0,0.00027381,2]
[392665408,1761798409499,-151.0,0.00027381,2]
[392665409,1761798409533,-151.0,0.00027381,2]
[392665410,1761798409565,-151.0,0.00027381,2]
[392665411,1761798409596,-151.0,0.00027381,2]
[392665412,1761798409792,-80.18238354,0.00027381,2]
[392665413,1761798427100,-256.51316811,0.0002738,2]
[392665417,1761798450103,-546.53469965,0.00024682,2]
[392665418,1761798491126,3090.88772304,0.00019205,5]
[392665424,1761798527565,-244.32026477,0.00024682,2]
[392665425,1761798527593,-403.48873212,0.00024807,2]
[392665426,1761798527626,-300.0,0.0002493,2]
[392665433,1761798560052,581.33,0.00030136,120]
[392665434,1761798568115,-7035.47542252,0.00026,30]
[392665435,1761798581490,7705.46,0.00024932,2]
[392665559,1761798635718,-4072.96554796,0.0002571,2]
[392665560,1761798635730,-9273.63718222,0.0002571,2]
[392665561,1761798635741,-15815.97442982,0.0002571,2]
[392665562,1761798635751,-465.91,0.0002599,10]
[392665563,1761798635760,-388.26,0.0002599,10]
[392665564,1761798635770,-300.0,0.00025999,2]
[392665565,1761798635779,-500.0,0.00025999,2]
[392665566,1761798635788,-343.95139199,0.00025999,2]
[392665567,1761798635798,-362.27271924,0.00025999,2]
[392665568,1761798635807,-500.0,0.00025999,2]
[392665569,1761798635816,-500.0,0.00025999,2]
[392665570,1761798635826,-500.0,0.00025999,2]
[392665571,1761798635839,-500.0,0.00025999,2]
[392665572,1761798635850,-500.0,0.00025999,2]
[392665573,1761798635859,-500.0,0.00025999,2]
[392665574,1761798635868,-500.0,0.00025999,2]
[392665575,1761798635879,-500.0,0.00025999,2]
[392665576,1761798635888,-500.0,0.00025999,2]
[392665577,1761798635898,-500.0,0.00025999,2]
[392665578,1761798635907,-500.0,0.00025999,2]
[392665579,1761798635919,-500.0,0.00025999,2]
[392665580,1761798635928,-500.0,0.00025999,2]
[392665581,1761798635941,-500.0,0.00025999,2]
[392665582,1761798635951,-500.0,0.00025999,2]
[392665583,1761798635961,-115.77312642,0.00025999,2]
[392665601,1761798637763,-370.25580973,0.00025999,2]
[392665602,1761798637773,-500.0,0.00025999,2]
[392665603,1761798637783,-493.31240523,0.00025999,2]
[392665604,1761798637793,-500.0,0.00025999,2]
[392665605,1761798637803,-500.0,0.00025999,2]
[392665607,1761798637812,-500.0,0.00025999,2]
[392665609,1761798637822,-500.0,0.00025999,2]
[392665611,1761798637832,-500.0,0.00025999,2]
[392665613,1761798637846,-500.0,0.00025999,2]
[392665615,1761798637856,-298.76422198,0.00025999,2]
[392665617,1761798637866,-500.0,0.00025999,2]
[392665618,1761798637875,-500.0,0.00025999,2]
[392665620,1761798637887,-500.0,0.00025999,2]
[392665622,1761798637896,-500.0,0.00025999,2]
[392665624,1761798637906,-500.0,0.00025999,2]
[392665626,1761798637916,-500.0,0.00025999,2]
[392665628,1761798637926,-500.0,0.00025999,2]
[392665630,1761798637939,-500.0,0.00025999,2]
[392665631,1761798637949,-500.0,0.00025999,2]
[392665632,1761798637961,-500.0,0.00025999,2]
[392665633,1761798637971,-500.0,0.00025999,2]
[392665634,1761798637981,-178.244367,0.00025999,2]
[392665635,1761798637991,-500.0,0.00025999,2]
[392665636,1761798638000,-604.26769057,0.00025999,2]
[392665637,1761798638010,-506.72927252,0.00025999,2]
[392665639,1761798638020,-500.0,0.00025999,2]
[392665640,1761798638030,-500.0,0.00025999,2]
[392665641,1761798638039,-500.0,0.00025999,2]
[392665642,1761798638049,-500.0,0.00025999,2]
[392665644,1761798638064,-77918.2438482,0.00026,30]
[392665645,1761798638074,-709.52210113,0.00026071,2]
[392665646,1761798638083,-205.92173437,0.00026439,2]
[392665647,1761798638093,-1856.25233958,0.00026539,2]
[392665648,1761798638103,-200.0,0.00026539,2]
[392665649,1761798638112,-150.0,0.00026576,30]
[392665650,1761798638121,-476.11670391,0.00026807,2]
[392665651,1761798638132,-37439.23138761,0.0002699,2]
[392665652,1761798638141,-157.14521273,0.00027281,2]
[392665653,1761798638151,-500.0,0.00027373,2]
[392665654,1761798638163,-500.0,0.00027373,2]
[392665655,1761798638172,-151.0,0.00027381,2]
[392665656,1761798638183,-151.0,0.00027381,2]
[392665657,1761798638195,-151.0,0.00027381,2]
[392665658,1761798638205,-151.0,0.00027381,2]
[392665659,1761798638215,-151.0,0.00027381,2]
[392665660,1761798638226,-151.0,0.00027381,2]
[392665661,1761798638236,-151.0,0.00027381,2]
[392665662,1761798638245,-151.0,0.00027381,2]
[392665663,1761798638254,-151.0,0.00027381,2]
[392665664,1761798638265,-151.0,0.00027381,2]
[392665665,1761798638274,-151.0,0.00027381,2]
[392665666,1761798638284,-151.0,0.00027381,2]
[392665667,1761798638293,-151.0,0.00027381,2]
[392665668,1761798638303,-151.0,0.00027381,2]
[392665669,1761798638312,-151.0,0.00027381,2]
[392665670,1761798638321,-151.0,0.00027381,2]
[392665671,1761798638330,-151.0,0.00027381,2]
[392665672,1761798638340,-151.0,0.00027381,2]
[392665673,1761798638350,-151.0,0.00027381,2]
[392665674,1761798638359,-151.0,0.00027381,2]
[392665675,1761798638368,-898.14819351,0.00027387,2]
[392665676,1761798638378,-613.12,0.00027387,3]
[392665677,1761798638387,-500.0,0.00027396,2]
[392665678,1761798638396,-500.0,0.00027396,2]
[392665679,1761798638405,-500.0,0.00027397,2]
[392665680,1761798638414,-500.0,0.00027397,2]
[392665681,1761798638424,-500.0,0.00027397,2]
[392665682,1761798638435,-500.0,0.00027397,2]
[392665683,1761798638445,-500.0,0.00027397,2]
[392665684,1761798638454,-500.0,0.00027397,2]
[392665685,1761798638464,-500.0,0.00027397,2]
[392665686,1761798638474,-500.0,0.00027397,2]
[392665687,1761798638483,-500.0,0.00027397,2]
[392665688,1761798638493,-500.0,0.00027397,2]
[392665689,1761798638502,-501.85939439,0.00027397,2]
[392665690,1761798638511,-500.0,0.00027397,2]
[392665691,1761798638521,-500.0,0.00027397,2]
[392665692,1761798638530,-500.0,0.00027397,2]
[392665693,1761798638540,-500.0,0.00027397,2]
[392665694,1761798638549,-500.0,0.00027397,2]
[392665695,1761798638558,-500.0,0.00027397,2]
[392665696,1761798638567,-618.43,0.00027397,2]
[392665697,1761798638576,-500.0,0.00027397,2]
[392665698,1761798638586,-500.0,0.00027397,2]
[392665699,1761798638596,-303.08943727,0.00027397,2]
[392665700,1761798638606,-599.84,0.00027397,2]
[392665701,1761798638615,-277.07953674,0.00027397,2]
[392665702,1761798638624,-500.0,0.00027397,2]
[392665703,1761798638634,-500.0,0.00027397,2]
[392665704,1761798638647,-500.0,0.00027397,2]
[392665705,1761798638656,-500.0,0.00027397,2]
[392665706,1761798638666,-500.0,0.00027397,2]
[392665707,1761798638676,-500.0,0.00027397,2]
[392665708,1761798638688,-555.9,0.00027397,2]
[392665709,1761798638698,-500.0,0.00027397,2]
[392665710,1761798638707,-500.0,0.00027397,2]
[392665711,1761798638716,-500.0,0.00027397,2]
[392665712,1761798638726,-500.0,0.00027397,2]
[392665713,1761798638737,-500.0,0.00027397,2]
[392665714,1761798638747,-500.0,0.00027397,2]
[392665715,1761798638757,-500.0,0.00027397,2]
[392665716,1761798638766,-500.0,0.00027397,2]
[392665717,1761798638775,-500.0,0.00027397,2]
[392665718,1761798638785,-500.45382151,0.00027397,2]
[392665719,1761798638794,-504.91202988,0.00027397,2]
[392665720,1761798638803,-500.0,0.00027397,2]
[392665721,1761798638813,-509.13413017,0.00027397,2]
[392665722,1761798638822,-500.0,0.00027397,2]
[392665723,1761798638832,-500.0,0.00027397,2]
[392665724,1761798638843,-500.0,0.00027397,2]
[392665725,1761798638853,-500.0,0.00027397,2]
[392665726,1761798638863,-500.0,0.00027397,2]
[392665727,1761798638872,-581.43955019,0.00027397,2]
[392665728,1761798638882,-500.0,0.00027397,2]
[392665729,1761798638891,-500.0,0.00027397,2]
[392665730,1761798638900,-500.0,0.00027397,2]
[392665731,1761798638910,-502.78086725,0.00027397,2]
[392665732,1761798638920,-500.0,0.00027397,2]
[392665733,1761798638929,-500.0,0.00027397,2]
[392665734,1761798638942,-500.0,0.00027397,2]
[392665735,1761798638952,-500.0,0.00027397,2]
[392665736,1761798638961,-500.0,0.00027397,2]
[392665737,1761798638971,-500.0,0.00027397,2]
[392665738,1761798638981,-500.0,0.00027397,2]
[392665739,1761798638992,-616.63,0.00027397,2]
[392665740,1761798639001,-500.0,0.00027397,2]
[392665741,1761798639012,-500.0,0.00027397,2]
[392665742,1761798639022,-502.44855505,0.00027397,2]
[392665743,1761798639031,-596.27,0.00027397,2]
[392665744,1761798639041,-500.0,0.00027397,2]
[392665745,1761798639050,-500.0,0.00027397,2]
[392665746,1761798639059,-503.64165459,0.00027397,2]
[392665747,1761798639069,-560.72,0.00027397,2]
[392665748,1761798639078,-500.0,0.00027397,2]
[392665749,1761798639087,-500.0,0.00027397,2]
[392665750,1761798639097,-500.0,0.00027397,2]
[392665751,1761798639106,-500.0,0.00027397,2]
[392665752,1761798639115,-500.0,0.00027397,2]
[392665753,1761798639125,-500.0,0.00027397,2]
[392665754,1761798639134,-500.0,0.00027397,2]
[392665755,1761798639143,-500.0,0.00027397,2]
[392665756,1761798639153,-500.0,0.00027397,2]
[392665757,1761798639162,-500.0,0.00027397,2]
[392665758,1761798639172,-500.0,0.00027397,2]
[392665759,1761798639182,-500.0,0.00027397,2]
[392665760,1761798639196,-500.0,0.00027397,2]
[392665761,1761798639206,-500.0,0.00027397,2]
[392665762,1761798639216,-583.23,0.00027397,2]
[392665763,1761798639225,-443.15550602,0.00027397,2]
[392665764,1761798639235,-500.0,0.00027397,2]
[392665765,1761798639245,-500.0,0.00027397,2]
[392665766,1761798639260,-500.0,0.00027397,2]
[392665767,1761798639269,-500.0,0.00027397,2]
[392665768,1761798639279,-500.0,0.00027397,2]
[392665769,1761798639288,-500.0,0.00027397,2]
[392665770,1761798639297,-500.0,0.00027397,2]
[392665771,1761798639307,-500.0,0.00027397,2]
[392665772,1761798639316,-500.0,0.00027397,2]
[392665773,1761798639325,-500.0,0.00027397,2]
[392665775,1761798639335,-500.0,0.00027397,2]
[392665777,1761798639344,-500.0,0.00027397,2]
[392665778,1761798639353,-500.0,0.00027397,2]
[392665779,1761798639362,-304.74124255,0.00027397,2]
[392665780,1761798639371,-488.02893385,0.00027397,2]
[392665781,1761798639381,-500.0,0.00027397,2]
[392665782,1761798639391,-500.0,0.00027397,2]
[392665783,1761798639400,-500.0,0.00027397,2]
[392665784,1761798639410,-504.74706413,0.00027397,2]
[392665785,1761798639419,-500.0,0.00027397,2]
[392665786,1761798639428,-503.54,0.00027397,2]
[392665787,1761798639439,-501.87998972,0.00027397,2]
[392665788,1761798639448,-500.34906433,0.00027397,2]
[392665789,1761798639457,-500.0,0.00027397,2]
[392665790,1761798639466,-500.0,0.00027397,2]
[392665791,1761798639476,-500.0,0.00027397,2]
[392665792,1761798639485,-500.0,0.00027397,2]
[392665793,1761798639494,-500.0,0.00027397,2]
[392665795,1761798639503,-500.0,0.00027397,2]
[392665797,1761798639512,-501.67096801,0.00027397,2]
[392665799,1761798639522,-500.0,0.00027397,2]
[392665800,1761798639531,-501.79232076,0.00027397,2]
[392665801,1761798639540,-500.0,0.00027397,2]
[392665802,1761798639550,-501.91651838,0.00027397,2]
[392665803,1761798639559,-500.0,0.00027397,2]
[392665804,1761798639569,-505.58081245,0.00027397,2]
[392665805,1761798639579,-501.98056902,0.00027397,2]
[392665806,1761798639588,-500.0,0.00027397,2]
[392665807,1761798639598,-502.40226636,0.00027397,2]
[392665809,1761798639607,-633.59367126,0.00027397,2]
[392665810,1761798639617,-500.0,0.00027397,2]
[392665811,1761798639627,-501.60867436,0.00027397,2]
[392665812,1761798639636,-500.0,0.00027397,2]
[392665813,1761798639645,-500.0,0.00027397,2]
[392665814,1761798639655,-500.0,0.00027397,2]
[392665815,1761798639664,-501.39834426,0.00027397,2]
[392665816,1761798639673,-500.0,0.00027397,2]
[392665817,1761798639682,-500.0,0.00027397,2]
[392665818,1761798639694,-641.41347818,0.00027397,2]
[392665819,1761798639703,-501.60607919,0.00027397,2]
[392665821,1761798639713,-500.0,0.00027397,2]
[392665822,1761798639722,-564.86463342,0.00027397,2]
[392665824,1761798639731,-1004.55826614,0.00027397,2]
[392665826,1761798639740,-502.47074827,0.00027397,2]
[392665828,1761798639749,-500.0,0.00027397,2]
[392665829,1761798639759,-610.52,0.00027397,2]
[392665830,1761798639768,-563.69,0.00027397,2]
[392665831,1761798639777,-500.0,0.00027397,2]
[392665832,1761798639786,-500.0,0.00027397,2]
[392665833,1761798639795,-502.22318503,0.00027397,2]
[392665834,1761798639804,-500.0,0.00027397,2]
[392665835,1761798639813,-605.29926699,0.00027397,2]
[392665836,1761798639823,-634.42,0.00027397,2]
[392665837,1761798639832,-635.28,0.00027397,2]
[392665838,1761798639846,-214.4052935,0.00027397,2]
[392665839,1761798639856,-614.3576797,0.00027397,2]
[392665840,1761798639865,-503.91465791,0.00027397,2]
[392665841,1761798639874,-122.86842711,0.00027397,7]
[392665842,1761798639894,-28.13157289,0.00027397,7]
[392665843,1761798639903,-500.0,0.00027397,2]
[392665844,1761798639912,-500.0,0.00027397,2]
[392665845,1761798639923,-503.1422664,0.00027397,2]
[392665846,1761798639932,-500.0,0.00027397,2]
[392665847,1761798639947,-500.0,0.00027397,2]
[392665848,1761798639957,-506.67217839,0.00027397,2]
[392665849,1761798639966,-500.0,0.00027397,2]
[392665850,1761798639975,-502.38186975,0.00027397,2]
[392665851,1761798639984,-503.07636776,0.00027397,2]
[392665853,1761798639993,-500.0,0.00027397,2]
[392665854,1761798640002,-500.70144695,0.00027397,2]
[392665855,1761798640011,-500.0,0.00027397,2]
[392665856,1761798640020,-501.35212755,0.00027397,2]
[392665857,1761798640030,-502.48448497,0.00027397,2]
[392665858,1761798640039,-500.0,0.00027397,2]
[392665859,1761798640049,-500.66558064,0.00027397,2]
[392665860,1761798640058,-368.24309086,0.00027397,2]
[392665861,1761798640067,-500.0,0.00027397,2]
[392665862,1761798640077,-561.42,0.00027397,2]
[392665863,1761798640086,-500.0,0.00027397,2]
[392665864,1761798640095,-501.48046344,0.00027397,2]
[392665866,1761798640105,-501.83974728,0.00027397,2]
[392665867,1761798640114,-503.28606674,0.00027397,2]
[392665868,1761798640123,-500.0,0.00027397,2]
[392665869,1761798640231,-500.0,0.00027397,2]
[392665870,1761798640240,-504.05252254,0.00027397,2]
[392665871,1761798640250,-502.54746796,0.00027397,2]
[392665872,1761798640260,-502.42133642,0.00027397,2]
[392665873,1761798640269,-520.66395377,0.00027397,2]
[392665874,1761798640280,-501.36225947,0.00027397,2]
[392665875,1761798640290,-501.38014147,0.00027397,2]
[392665876,1761798640299,-501.71688596,0.00027397,2]
[392665877,1761798640308,-503.24269174,0.00027397,2]
[392665878,1761798640317,-503.57818259,0.00027397,2]
[392665880,1761798640326,-500.0,0.00027397,2]
[392665881,1761798640335,-501.23342443,0.00027397,2]
[392665883,1761798640344,-600.3734242,0.00027397,2]
[392665884,1761798640354,-500.0,0.00027397,2]
[392665885,1761798640363,-500.93929426,0.00027397,2]
[392665886,1761798640372,-550.67,0.00027397,2]
[392665887,1761798640382,-500.0,0.00027397,2]
[392665888,1761798640391,-503.27409084,0.00027397,2]
[392665889,1761798640400,-503.06567627,0.00027397,2]
[392665890,1761798640410,-501.79399906,0.00027397,2]
[392665891,1761798640419,-506.21205554,0.00027397,2]
[392665892,1761798640429,-500.0,0.00027397,2]
[392665893,1761798640440,-502.08446996,0.00027397,2]
[392665894,1761798640449,-503.11939294,0.00027397,2]
[392665895,1761798640458,-503.19100968,0.00027397,2]